fUST/lending_fUST_20240105
["ID","MTS","AMOUNT","RATE_DAILY","PERIOD"]
[310286209,1704463839969,-651.21,0.0003589,7]
[310286210,1704463839978,-703.55,0.0003589,7]
[310286211,1704463839990,-500.0,0.0003589,7]
[310286212,1704463839999,-2492.02,0.0003589,7]
[310286213,1704463840012,-1087.22,0.0003589,7]
[310286214,1704463840021,-500.0,0.0003589,7]
[310286215,1704463840031,-224.09206611,0.0003589,7]
[310286216,1704463840040,-5401.14,0.0003589,7]
[310286217,1704463840051,-500.0,0.0003589,7]
[310286218,1704463840061,-500.0,0.0003589,7]
[310286219,1704463840070,-891.1,0.0003589,7]
[310286220,1704463840080,-30707.53,0.0003589,3]
[310286221,1704463840089,-500.0,0.0003589,7]
[310286222,1704463840099,-500.0,0.0003589,7]
[310286223,1704463840109,-500.0,0.0003589,7]
[310286224,1704463840119,-500.0,0.0003589,7]
[310286225,1704463840127,-904.1,0.0003589,7]
[310286226,1704463840136,-3724.39,0.0003589,7]
[310286228,1704463840146,-500.0,0.0003589,7]
[310286230,1704463840155,-500.0,0.0003589,7]
[310286232,1704463840164,-500.0,0.0003589,7]
[310286234,1704463840173,-154.79876161,0.000359,4]
[310286236,1704463840182,-150.0,0.00035937,7]
[310286238,1704463840191,-14211.11580998,0.00036155,2]
[310286239,1704463840200,-9592.37458583,0.00036155,2]
[310286241,1704463840209,-500.0,0.00036164,7]
[310286243,1704463840219,-500.0,0.00036164,7]
[310286246,1704463840228,-500.0,0.00036164,7]
[310286248,1704463840238,-500.0,0.00036164,7]
[310286249,1704463840248,-500.0,0.00036164,7]
[310286250,1704463840257,-331.64614035,0.00036164,7]
[310286251,1704463840266,-500.0,0.00036164,7]
[310286252,1704463840275,-500.0,0.00036164,7]
[310286253,1704463840285,-500.0,0.00036164,7]
[310286254,1704463840294,-500.0,0.00036164,7]
[310286255,1704463840302,-500.0,0.00036164,7]
[310286257,1704463840312,-500.0,0.00036164,7]
[310286258,1704463840321,-500.0,0.00036164,7]
[310286259,1704463840330,-500.0,0.00036164,7]
[310286260,1704463840340,-500.0,0.00036164,7]
[310286261,1704463840349,-500.0,0.00036164,7]
[310286262,1704463840358,-500.0,0.00036164,7]
[310286263,1704463840367,-500.0,0.00036164,7]
[310286264,1704463840376,-500.0,0.00036164,7]
[310286265,1704463840387,-500.0,0.00036164,7]
[310286266,1704463840396,-500.0,0.00036164,7]
[310286267,1704463840406,-500.0,0.00036164,7]
[310286268,1704463840415,-500.0,0.00036164,7]
[310286269,1704463840426,-500.0,0.00036164,7]
[310286270,1704463840435,-500.0,0.00036164,7]
[310286271,1704463840445,-500.0,0.00036164,7]
[310286272,1704463840454,-500.0,0.00036164,7]
[310286273,1704463840464,-1277.99,0.00036164,7]
[310286274,1704463840473,-500.0,0.00036164,7]
[310286275,1704463840484,-890.84,0.00036164,7]
[310286276,1704463840494,-2142.17,0.00036164,7]
[310286277,1704463840503,-500.0,0.00036164,7]
[310286278,1704463840512,-500.0,0.00036164,7]
[310286279,1704463840522,-500.0,0.00036164,7]
[310286280,1704463840531,-500.0,0.00036164,7]
[310286281,1704463840541,-651.21,0.00036164,7]
[310286282,1704463840551,-703.55,0.00036164,7]
[310286283,1704463840561,-500.0,0.00036164,7]
[310286284,1704463840571,-2492.02,0.00036164,7]
[310286285,1704463840582,-1087.22,0.00036164,7]
[310286286,1704463840593,-500.0,0.00036164,7]
[310286287,1704463840604,-5401.14,0.00036164,7]
[310286288,1704463840614,-500.0,0.00036164,7]
[310286289,1704463840623,-500.0,0.00036164,7]
[310286290,1704463840633,-891.1,0.00036164,7]
[310286291,1704463840642,-30707.53,0.00036164,3]
[310286292,1704463840652,-500.0,0.00036164,7]
[310286293,1704463840661,-500.0,0.00036164,7]
[310286294,1704463840673,-500.0,0.00036164,7]
[310286295,1704463840683,-500.0,0.00036164,7]
[310286296,1704463840692,-904.1,0.00036164,7]
[310286297,1704463840701,-3724.39,0.00036164,7]
[310286298,1704463840710,-500.0,0.00036164,7]
[310286299,1704463840719,-500.0,0.00036164,7]
[310286300,1704463840728,-150.0,0.00036257,7]
[310286301,1704463840737,-199.11669018,0.00036438,3]
[310286302,1704463840747,-500.0,0.00036438,7]
[310286303,1704463840756,-500.0,0.00036438,7]
[310286304,1704463840765,-564.16201128,0.00036438,7]
[310286305,1704463840775,-500.0,0.00036438,7]
[310286306,1704463840874,-500.0,0.00036438,7]
[310286307,1704463840883,-500.0,0.00036438,7]
[310286308,1704463840892,-500.0,0.00036438,7]
[310286309,1704463840901,-500.0,0.00036438,7]
[310286310,1704463840910,-500.0,0.00036438,7]
[310286311,1704463840920,-500.0,0.00036438,7]
[310286312,1704463840929,-500.0,0.00036438,7]
[310286313,1704463840938,-500.0,0.00036438,7]
[310286314,1704463840946,-500.0,0.00036438,7]
[310286315,1704463840955,-500.0,0.00036438,7]
[310286316,1704463840964,-500.0,0.00036438,7]
[310286317,1704463840973,-500.0,0.00036438,7]
[310286318,1704463840982,-500.0,0.00036438,7]
[310286319,1704463840993,-500.0,0.00036438,7]
[310286320,1704463841001,-500.0,0.00036438,7]
[310286321,1704463841010,-500.0,0.00036438,7]
[310286322,1704463841019,-500.0,0.00036438,7]
[310286323,1704463841028,-1277.99,0.00036438,7]
[310286324,1704463841037,-500.0,0.00036438,7]
[310286325,1704463841046,-890.84,0.00036438,7]
[310286326,1704463841055,-2142.17,0.00036438,7]
[310286327,1704463841064,-500.0,0.00036438,7]
[310286328,1704463841073,-500.0,0.00036438,7]
[310286329,1704463841081,-500.0,0.00036438,7]
[310286330,1704463841091,-500.0,0.00036438,7]
[310286331,1704463841100,-651.21,0.00036438,7]
[310286332,1704463841109,-703.55,0.00036438,7]
[310286333,1704463841118,-500.0,0.00036438,7]
[310286334,1704463841127,-2492.02,0.00036438,7]
[310286335,1704463841136,-1087.22,0.00036438,7]
[310286336,1704463841145,-500.0,0.00036438,7]
[310286337,1704463841154,-5401.14,0.00036438,7]
[310286338,1704463841163,-500.0,0.00036438,7]
[310286339,1704463841172,-891.1,0.00036438,7]
[310286340,1704463841181,-30707.53,0.00036438,3]
[310286341,1704463841190,-500.0,0.00036438,7]
[310286342,1704463841198,-500.0,0.00036438,7]
[310286343,1704463841208,-500.0,0.00036438,7]
[310286344,1704463841217,-500.0,0.00036438,7]
[310286345,1704463841226,-904.1,0.00036438,7]
[310286346,1704463841235,-3724.39,0.00036438,7]
[310286347,1704463841246,-500.0,0.00036438,7]
[310286348,1704463841255,-206.3840092,0.00036438,7]
[310286349,1704463841264,-599.45841804,0.0003671,2]
[310286350,1704463841273,-3538.7366841,0.00036711,2]
[310286351,1704463841282,-500.0,0.00036712,7]
[310286352,1704463841291,-500.0,0.00036712,7]
[310286353,1704463841300,-500.0,0.00036712,7]
[310286354,1704463841311,-500.0,0.00036712,7]
[310286355,1704463841321,-500.0,0.00036712,7]
[310286356,1704463841330,-500.0,0.00036712,7]
[310286357,1704463841340,-500.0,0.00036712,7]
[310286358,1704463841350,-500.0,0.00036712,7]
[310286359,1704463841359,-500.0,0.00036712,7]
[310286360,1704463841368,-500.0,0.00036712,7]
[310286361,1704463841377,-588.66992823,0.00036712,7]
[310286362,1704463841386,-500.0,0.00036712,7]
[310286363,1704463841396,-500.0,0.00036712,7]
[310286364,1704463841405,-500.0,0.00036712,7]
[310286365,1704463841415,-500.0,0.00036712,7]
[310286366,1704463841424,-500.0,0.00036712,7]
[310286367,1704463841434,-500.0,0.00036712,7]
[310286368,1704463841445,-1277.99,0.00036712,7]
[310286369,1704463841456,-500.0,0.00036712,7]
[310286370,1704463841466,-890.84,0.00036712,7]
[310286371,1704463841477,-2142.17,0.00036712,7]
[310286372,1704463841488,-500.0,0.00036712,7]
[310286373,1704463841506,-500.0,0.00036712,7]
[310286374,1704463841516,-500.0,0.00036712,7]
[310286375,1704463841527,-500.0,0.00036712,7]
[310286377,1704463841536,-651.21,0.00036712,7]
[310286379,1704463841546,-703.55,0.00036712,7]
[310286381,1704463841557,-500.0,0.00036712,7]
[310286383,1704463841566,-2492.02,0.00036712,7]
[310286385,1704463841575,-1087.22,0.00036712,7]
[310286387,1704463841585,-500.0,0.00036712,7]
[310286389,1704463841594,-5401.14,0.00036712,7]
[310286391,1704463841603,-500.0,0.00036712,7]
[310286393,1704463841613,-891.1,0.00036712,7]
[310286395,1704463841622,-30707.53,0.00036712,3]
[310286397,1704463841631,-450.4775009,0.00036712,7]
[310286399,1704463841640,-500.0,0.00036712,7]
[310286401,1704463841650,-500.0,0.00036712,7]
[310286403,1704463841659,-500.0,0.00036712,7]
[310286405,1704463841668,-904.1,0.00036712,7]
[310286407,1704463841679,-3724.39,0.00036712,7]
[310286409,1704463841688,-156.36114344,0.00036886,2]
[310286411,1704463841697,-500.0,0.00036985,7]
[310286413,1704463841707,-384.20030341,0.00036985,7]
[310286415,1704463841716,-372.97788477,0.00036985,7]
[310286417,1704463841726,-500.0,0.00036985,7]
[310286419,1704463841735,-500.0,0.00036985,7]
[310286421,1704463841748,-350.61187532,0.00036985,7]
[310286423,1704463841758,-218.35005904,0.00036985,7]
[310286425,1704463841767,-366.99610418,0.00036986,7]
[310286433,1704463841838,-133.00389582,0.00036986,7]
[310286435,1704463841848,-500.0,0.00036986,7]
[310286437,1704463841858,-500.0,0.00036986,7]
[310286439,1704463841868,-143.87502364,0.00036986,7]
[310286441,1704463841880,-356.12497636,0.00036986,7]
[310286443,1704463841890,-500.0,0.00036986,7]
[310286445,1704463841899,-500.0,0.00036986,7]
[310286447,1704463841909,-500.0,0.00036986,7]
[310286449,1704463841918,-252.53534228,0.00036986,7]
[310286451,1704463841928,-500.0,0.00036986,7]
[310286453,1704463841936,-500.0,0.00036986,7]
[310286455,1704463841945,-500.0,0.00036986,7]
[310286457,1704463841954,-500.0,0.00036986,7]
[310286459,1704463841964,-500.0,0.00036986,7]
[310286461,1704463841972,-500.0,0.00036986,7]
[310286463,1704463841982,-500.0,0.00036986,7]
[310286465,1704463841992,-500.0,0.00036986,7]
[310286467,1704463842001,-1277.99,0.00036986,7]
[310286469,1704463842010,-500.0,0.00036986,7]
[310286471,1704463842020,-890.84,0.00036986,7]
[310286473,1704463842028,-2142.17,0.00036986,7]
[310286475,1704463842037,-500.0,0.00036986,7]
[310286477,1704463842046,-586.1627845,0.00036986,7]
[310286479,1704463842055,-651.21,0.00036986,7]
[310286481,1704463842064,-703.55,0.00036986,7]
[310286483,1704463842073,-2492.02,0.00036986,7]
[310286485,1704463842082,-1087.22,0.00036986,7]
[310286487,1704463842091,-5401.14,0.00036986,7]
[310286489,1704463842100,-500.0,0.00036986,7]
[310286491,1704463842110,-891.1,0.00036986,7]
[310286493,1704463842119,-10364.91052819,0.00036986,3]
[310286495,1704463842130,-2214.71996561,0.00036986,3]
[310286497,1704463842142,-2089.60794043,0.00036986,3]
[310286507,1704463842226,-11249.7471707,0.00036986,3]
[310286624,1704463843141,-4788.54439507,0.00036986,3]
[310286626,1704463843151,-500.0,0.00036986,7]
[310286629,1704463843160,-500.0,0.00036986,7]
[310286630,1704463843169,-904.1,0.00036986,7]
[310286633,1704463843178,-3724.39,0.00036986,7]
[310286635,1704463843188,-4209.5776207,0.00037,7]
[310286636,1704463843197,-4000.0,0.00037075,2]
[310286638,1704463843206,-500.0,0.0003726,7]
[310286641,1704463843216,-500.0,0.0003726,7]
[310286642,1704463843227,-500.0,0.0003726,7]
[310286645,1704463843237,-500.0,0.0003726,7]
[310286646,1704463843248,-500.0,0.0003726,7]
[310286648,1704463843258,-500.0,0.0003726,7]
[310286653,1704463843270,-500.0,0.0003726,7]
[310286656,1704463843279,-500.0,0.0003726,7]
[310286659,1704463843289,-500.0,0.0003726,7]
[310286661,1704463843299,-500.0,0.0003726,7]
[310286663,1704463843308,-500.0,0.0003726,7]
[310286665,1704463843319,-500.0,0.0003726,7]
[310286667,1704463843328,-500.0,0.0003726,7]
[310286669,1704463843337,-500.0,0.0003726,7]
[310286670,1704463843347,-1277.99,0.0003726,7]
[310286672,1704463843357,-500.0,0.0003726,7]
[310286674,1704463843366,-890.84,0.0003726,7]
[310286677,1704463843375,-2142.17,0.0003726,7]
[310286678,1704463843384,-500.0,0.0003726,7]
[310286680,1704463843393,-651.21,0.0003726,7]
[310286682,1704463843402,-703.55,0.0003726,7]
[310286684,1704463843411,-2492.02,0.0003726,7]
[310286686,1704463843420,-1087.22,0.0003726,7]
[310286688,1704463843430,-5401.14,0.0003726,7]
[310286690,1704463843439,-500.0,0.0003726,7]
[310286693,1704463843449,-891.1,0.0003726,7]
[310286696,1704463843470,-8290.85192607,0.0003726,3]
[310286698,1704463843484,-1278.14042003,0.0003726,3]
[310300638,1704465038407,-154.78330338,0.00033792,4]
[310300640,1704465038417,-154.78330338,0.00033792,5]
[310300642,1704465038426,-1222.46944455,0.00033793,2]
[310300644,1704465038435,-299.85702206,0.00033793,7]
[310300646,1704465038444,-11000.0,0.00034,5]
[310300648,1704465038454,-1000.0,0.00034,7]
[310300650,1704465038463,-178.5148875,0.00034247,2]
[310300652,1704465038472,-218.269505,0.00034313,2]
[310300655,1704465038482,-2000.0,0.000345,2]
[310300657,1704465038491,-1684.759752,0.00034521,2]
[310300659,1704465038502,-543.37397265,0.00034886,2]
[310300661,1704465038511,-572.62400698,0.00035367,2]
[310300663,1704465038519,-213.09153432,0.00035367,2]
[310300664,1704465038528,-196.82966404,0.00035367,2]
[310300666,1704465038537,-206.67114724,0.00035367,2]
[310300669,1704465038547,-263.0,0.00035589,2]
[310300672,1704465038556,-477.0,0.00035589,2]
[310300674,1704465038565,-3538.7366841,0.00035614,2]
[310300676,1704465038574,-620.06530623,0.00035615,2]
[310300678,1704465038583,-500.0,0.00035616,7]
[310300680,1704465038593,-500.0,0.00035616,7]
[310300682,1704465038602,-500.0,0.00035616,7]
[310300684,1704465038611,-500.0,0.00035616,7]
[310300687,1704465038620,-500.0,0.00035616,7]
[310300689,1704465038630,-500.0,0.00035616,7]
[310300690,1704465038639,-500.0,0.00035616,7]
[310300692,1704465038648,-588.66992823,0.00035616,7]
[310300694,1704465038659,-500.0,0.00035616,7]
[310300696,1704465038668,-500.0,0.00035616,7]
[310300698,1704465038677,-500.0,0.00035616,7]
[310300700,1704465038686,-500.0,0.00035616,7]
[310300702,1704465038695,-500.0,0.00035616,7]
[310300704,1704465038704,-500.0,0.00035616,7]
[310300706,1704465038713,-500.0,0.00035616,7]
[310300708,1704465038722,-452.00904603,0.00035616,7]
[310300711,1704465038736,-3.15177858,0.00035616,7]
[310300713,1704465038746,-500.0,0.00035616,7]
[310300715,1704465038758,-500.0,0.00035616,7]
[310300716,1704465038767,-273.72714088,0.00035616,7]
[310300720,1704465038793,-226.27285912,0.00035616,7]
[310300722,1704465038802,-500.0,0.00035616,7]
[310300724,1704465038811,-500.0,0.00035616,7]
[310300726,1704465038821,-500.0,0.00035616,7]
[310300728,1704465038831,-186.868271,0.00035616,120]
[310300730,1704465038841,-1684.759752,0.00035798,2]
[310300732,1704465038850,-500.0,0.00035869,7]
[310300734,1704465038860,-500.0,0.00035869,7]
[310300736,1704465038871,-170.61260096,0.00035869,7]
[310300738,1704465038880,-500.0,0.00035869,7]
[310300740,1704465038890,-500.0,0.00035869,7]
[310300742,1704465038899,-500.0,0.00035869,7]
[310300744,1704465038908,-500.0,0.00035869,7]
[310300746,1704465038918,-500.0,0.00035869,7]
[310300748,1704465038927,-500.0,0.00035869,7]
[310300750,1704465038936,-500.0,0.00035869,7]
[310300752,1704465038948,-500.0,0.00035869,7]
[310300753,1704465038958,-500.0,0.00035869,7]
[310300755,1704465038968,-594.91872802,0.00035869,7]
[310300758,1704465038977,-500.0,0.00035869,7]
[310300760,1704465038987,-500.0,0.00035869,7]
[310300762,1704465038996,-500.0,0.00035869,7]
[310300764,1704465039006,-500.0,0.00035869,7]
[310300766,1704465039015,-500.0,0.00035869,2]
[310300768,1704465039024,-331.64614035,0.00035869,7]
[310300769,1704465039034,-500.0,0.0003589,7]
[310300771,1704465039043,-500.0,0.0003589,7]
[310300773,1704465039052,-500.0,0.0003589,7]
[310300775,1704465039061,-500.0,0.0003589,7]
[310300777,1704465039070,-500.0,0.0003589,7]
[310300779,1704465039083,-500.0,0.0003589,7]
[310300781,1704465039093,-500.0,0.0003589,7]
[310300783,1704465039102,-500.0,0.0003589,7]
[310300786,1704465039111,-500.0,0.0003589,7]
[310300787,1704465039122,-500.0,0.0003589,7]
[310300789,1704465039131,-450.4775009,0.0003589,7]
[310300791,1704465039140,-500.0,0.0003589,7]
[310300794,1704465039151,-500.0,0.0003589,7]
[310300796,1704465039163,-154.79876161,0.000359,4]
[310300798,1704465039174,-156.36114344,0.00036041,2]
[310300800,1704465039187,-12815.25,0.00036081,3]
[310300803,1704465039199,-1825.00787393,0.00036091,3]
[310300805,1704465039213,-805.49841427,0.00036091,3]
[310301024,1704465041716,-12468.8237118,0.00036091,3]
[310301026,1704465041727,-18119.2,0.00036101,3]
[310301028,1704465041738,-21743.04,0.00036111,3]
[310301030,1704465041750,-500.0,0.0003612,7]
[310301033,1704465041762,-500.0,0.0003612,7]
[310301035,1704465041772,-2180.52,0.0003612,7]
[310301037,1704465041782,-500.0,0.0003612,7]
[310301038,1704465041792,-10507.01814248,0.00036121,3]
[310301041,1704465041806,-432.94,0.00036121,3]
[310301110,1704465043329,-4681.70587075,0.00036121,3]
[310302543,1704466232482,-154.81422293,0.00033969,5]
[310302545,1704466232493,-166.53278999,0.0003397,4]
[310302547,1704466232503,-1000.0,0.00034,7]
[310302549,1704466232512,-362.2493151,0.00034021,2]
[310302551,1704466232522,-218.269505,0.00034371,2]
[310302553,1704466232532,-2000.0,0.0003452,2]
[310302555,1704466232542,-431.08416698,0.00034521,2]
[310302642,1704466238596,-579.77168402,0.00034521,2]
[310302644,1704466238606,-180.97530798,0.00035398,2]
[310302646,1704466238615,-150.0,0.00035616,7]
[310302648,1704466238625,-186.868271,0.00035616,120]
[310302650,1704466238634,-1010.855851,0.00035798,2]
[310302652,1704466238643,-108.52061993,0.00035869,7]
[310302655,1704466238656,-391.47938007,0.00035869,7]
[310302657,1704466238665,-500.0,0.00035869,7]
[310302659,1704466238675,-500.0,0.00035869,7]
[310302661,1704466238684,-500.0,0.00035869,7]
[310302662,1704466238694,-500.0,0.00035869,7]
[310302664,1704466238704,-154.82968734,0.000359,4]
[310302666,1704466238715,-150.0,0.00035937,7]
[310302668,1704466238725,-255.9992623,0.00035973,2]
[310302686,1704466241722,-173.0007377,0.00035973,2]
[310302687,1704466241733,-9507.17,0.00035989,3]
[310302688,1704466241742,-7995.0,0.0003599,3]
[310302689,1704466241753,-13690.32,0.0003599,3]
[310302690,1704466241763,-11408.6,0.0003599,3]
[310302691,1704466241773,-174.0,0.00035999,2]
[310302692,1704466241782,-483.67081862,0.00035999,2]
[310302693,1704466241794,-500.0,0.00035999,7]
[310302694,1704466241805,-500.0,0.00035999,7]
[310302695,1704466241815,-500.0,0.00035999,7]
[310302696,1704466241824,-2193.5,0.00035999,7]
[310302697,1704466241835,-12584.48328368,0.00035999,3]
[310302732,1704466243635,-1300.20034885,0.00035999,3]
[310302733,1704466243647,-4922.36800221,0.00035999,3]
[310302825,1704467434611,-1229.57016798,0.00021986,2]
[310302828,1704467434624,-235.27538647,0.00021986,2]
[310302831,1704467434634,-166.24243892,0.00021986,2]
[310302833,1704467434644,-158.38723793,0.00021987,2]
[310302835,1704467434657,-32.41737371,0.00021987,2]
[310302837,1704467434667,-154.84515485,0.00021987,4]
[310302839,1704467434677,-402.93492776,0.00021987,2]
[310302973,1704467440649,-1238.62873412,0.00021986,2]
[310302974,1704467440659,-38.25018534,0.00021986,2]
[310302975,1704467440671,-260.23496482,0.00021986,2]
[310302976,1704467440681,-2402.94879283,0.00021987,2]
[310302977,1704467440690,-154.84515485,0.00021988,2]
[310302978,1704467440700,-2991.35420991,0.00021988,2]
[310302979,1704467440709,-7856.7609539,0.00021989,2]
[310302980,1704467440719,-292.18391192,0.00022,4]
[310302982,1704467440729,-166.666666,0.0002336,2]
[310302983,1704467440738,-278.19777427,0.00024732,2]
[310302984,1704467440748,-166.666666,0.00026544,2]
[310302986,1704467440758,-258.1683235,0.00028476,2]
[310302988,1704467440767,-653.1527316,0.00028677,2]
[310302990,1704467440776,-235.68021843,0.00030998,4]
[310302992,1704467440785,-676.09716813,0.00030998,4]
[310302993,1704467440795,-170.61260096,0.00030999,4]
[310302995,1704467440805,-17533.40349421,0.00031,4]
[310302996,1704467440817,-8713.04008409,0.00031,4]
[310303013,1704467441964,-4166.28940712,0.00031,4]
[310303085,1704467443797,-471.44783049,0.00021985,2]
[310303137,1704467446692,-5475.54913713,0.00021985,2]
[310303138,1704467446702,-154.84515485,0.00021985,2]
[310303139,1704467446712,-6309.48074992,0.00031,4]
[310303140,1704467446722,-5359.78,0.00031315,3]
[310303141,1704467446732,-236.73444747,0.00031315,3]
[310303142,1704467446750,-267.57298609,0.00031315,3]
[310303179,1704468453433,622.4190157,0.00019988,2]
[310303180,1704468481678,154.82968734,0.00019988,2]
[310303181,1704468482524,5209.07923772,0.00019988,2]
[310303182,1704468487032,18847.36572562,0.00019988,2]
[310303183,1704468488426,5166.30633362,0.00020912,2]
[310303185,1704468493556,154.82968734,0.00017989,2]
[310303186,1704468493678,154.82968734,0.00019988,2]
[310303187,1704468498530,5232.53143588,0.00019988,2]
[310303188,1704468503039,18847.36572562,0.00019988,2]
[310303189,1704468511589,154.82968734,0.00017989,2]
[310303190,1704468511681,168.92090991,0.00019988,2]
[310303192,1704468521050,695.85191635,0.00019988,2]
[310303193,1704468527546,154.82968734,0.00017989,2]
[310303194,1704468529047,175.188123,0.00019963,2]
[310303196,1704468533973,10270.13461004,0.00019988,2]
[310303197,1704468534016,685.87380275,0.00019988,2]
[310303198,1704468538073,1032.95587979,0.00019988,2]
[310303199,1704468539073,154.82968734,0.00019988,2]
[310303200,1704468539339,3208.64110723,0.00019988,2]
[310303201,1704468541114,546.22096823,0.00019988,2]
[310303202,1704468541156,154.82968734,0.00019988,2]
[310303203,1704468544004,1522.21245058,0.00019988,2]
[310303204,1704468545554,154.82968734,0.00017967,2]
[310303205,1704468550020,480.66912602,0.00019963,2]
[310303206,1704468552060,1106.66623795,0.00019963,2]
[310303207,1704468555043,4560.02061517,0.00019963,2]
[310303208,1704468555330,3208.64110723,0.00019963,2]
[310303209,1704468557073,158.30244192,0.00019963,2]
[310303210,1704468558848,546.22096823,0.00019963,2]
[310303211,1704468559129,154.82968734,0.00019963,2]
[310303212,1704468563550,282.4468268,0.00017967,2]
[310303213,1704468563975,1601.49132643,0.00019963,2]
[310303214,1704468579337,3208.64110723,0.00019963,2]
[310303215,1704468580849,546.22096823,0.00019963,2]
[310303216,1704468583112,156.38996504,0.00019963,2]
[310303218,1704468592124,18691.8841532,0.00019227,2]
[310303219,1704468595332,1598.4509262,0.00019963,2]
[310303220,1704468604903,279.72245009,0.00019963,2]
[310303221,1704468615589,1125.12328,0.0001922,2]
[310303230,1704468636130,-78289.94835769,0.00020207,2]
[310303231,1704468636140,-154.82968734,0.00020208,2]
[310303232,1704468636149,-2870.14969708,0.00020208,2]
[310303233,1704468636158,-13548.76,0.00020208,3]
[310303234,1704468636168,-2509.67018179,0.00020209,2]
[310303235,1704468636178,-451.29256206,0.00020209,2]
[310303236,1704468636188,-1163.2504607,0.00020209,2]
[310303237,1704468636198,-568.14998178,0.00020209,2]
[310303238,1704468636207,-154.82968734,0.00020209,2]
[310303239,1704468636216,-154.82968734,0.00020209,2]
[310303240,1704468636225,-1238.62873412,0.00020209,2]
[310303241,1704468636234,-20841.25599026,0.00020209,2]
[310303242,1704468636244,-154.82968734,0.0002021,2]
[310303243,1704468636254,-642.26237757,0.0002021,2]
[310303244,1704468636264,-520.42865446,0.0002021,2]
[310303245,1704468636273,-322.09689119,0.0002021,2]
[310303246,1704468636283,-553.52733063,0.0002021,2]
[310303247,1704468636293,-164.74006432,0.0002021,2]
[310303248,1704468636302,-166.4097894,0.0002021,2]
[310303249,1704468636311,-26389.64216715,0.0002021,2]
[310303250,1704468636321,-7856.7609539,0.0002021,2]
[310303251,1704468636331,-285.42309706,0.00020218,2]
[310303252,1704468636340,-261.48680774,0.00020218,2]
[310303253,1704468636350,-2632.81131618,0.00020218,2]
[310303254,1704468636360,-154.82968734,0.00020218,2]
[310303255,1704468636370,-1679.18612823,0.00020218,2]
[310303256,1704468636380,-1735.30351573,0.00020218,2]
[310303257,1704468636391,-166.24243892,0.00020218,2]
[310303258,1704468636401,-170.26544559,0.00020219,2]
[310303259,1704468636410,-154.82968734,0.00020219,2]
[310303260,1704468636420,-176.37155355,0.00020219,2]
[310303261,1704468636431,-2705.78299771,0.00020219,2]
[310303262,1704468636441,-7935.87115541,0.00020219,2]
[310303263,1704468636451,-469.16586191,0.00020219,2]
[310303264,1704468636462,-1464.84555445,0.0002022,2]
[310303265,1704468636472,-322.52163965,0.0002022,2]
[310303266,1704468636481,-1029.54251024,0.0002022,2]
[310303267,1704468636491,-586.35537287,0.0002022,2]
[310303268,1704468636503,-154.82968734,0.0002022,4]
[310303269,1704468636513,-273.27943354,0.0002022,2]
[310303270,1704468636523,-253.29346904,0.0002022,2]
[310303271,1704468636534,-230.24274082,0.0002022,2]
[310303272,1704468636544,-154.82968734,0.0002022,2]
[310303273,1704468636554,-15863.581873,0.0002022,2]
[310303274,1704468636564,-36787.38326752,0.0002022,2]
[310303275,1704468636574,-852.63544921,0.00020221,2]
[310303276,1704468636584,-871.6110232,0.00020221,2]
[310303277,1704468636594,-4783.4316111,0.00020221,2]
[310303278,1704468636606,-264.60266705,0.00020221,2]
[310303279,1704468636616,-3474.24686337,0.00020221,2]
[310303280,1704468636625,-5946.99696762,0.00020221,2]
[310303281,1704468636637,-19640.98974528,0.00020221,2]